Cogmind - Beta 16 @@@ ROGUE MODE // 2026.02.12 @ 10:54:11 Player: Skergy Result: Destroyed by MB-LMF(R) with Subdweller Machine Gun Performance ------------- Evolutions (0) 0 Regions Visited (2) 400 Robots Destroyed (17) 85 Value Destroyed (350) 350 Prototype IDs (0) 0 Alien Tech Used (0) 0 Bonus (0) 0 TOTAL SCORE: 835 Bonus ------- None Cogmind --------- Core Integrity 0/250 Matter 300/300 Energy 63/100 System Corruption 1% Temperature Cool (0) Movement Treading (160) Location -10/Subcaves Parts ------- > --- POWER (1) -------- (None) > --- PROPULSION (2) --- Light Treads Light Treads > --- UTILITY (2) ------ Small Storage Unit > --- WEAPON (2) ------- Subdweller Laser > --- INVENTORY (8) ---- Light Ion Engine Light Ion Engine Subdweller Power Source Light Treads Aluminum Leg Aluminum Leg Machine Analyzer Scrap Shield Fragment (49) Peak State ------------ > --- POWER ------------ Ion Engine > --- PROPULSION ------- Light Treads Light Treads > --- UTILITY ---------- Small Storage Unit Seismic Detector > --- WEAPON ----------- EM Pulse Gun Riot Gun > --- INVENTORY -------- Light Ion Engine Light Treads Light Treads Aluminum Leg Aluminum Leg Medium Laser Grenade Launcher Mining Laser [Rating: 9] Favorites ----------- Power Ion Engine Engine Ion Engine Propulsion Light Treads Treads Light Treads Leg Aluminum Leg Utility Small Storage Unit Device Seismic Detector Storage Small Storage Unit Weapon EM Pulse Gun Energy Gun EM Pulse Gun Launcher Grenade Launcher Special Weapon Mining Laser Build | -11 -10 -10 ------- Run | Yrd Mat Sub Slots Evolved . | . . . Power . | . . . Propulsion . | . . . Utility . | . . . Weapon . | . . . Parts Attached 16 | 8 1 7 Power 2 | 2 . . Engine 2 | 2 . . Core . | . . . Reactor . | . . . Propulsion 5 | 3 . 2 Treads 4 | 2 . 2 Leg 1 | 1 . . Wheel . | . . . Hover . | . . . Flight . | . . . Utility 3 | 1 1 1 Device 2 | . 1 1 Storage 1 | 1 . . Processor . | . . . Hackware . | . . . Protection . | . . . Artifact . | . . . Weapon 6 | 2 . 4 Energy Gun 4 | 2 . 2 Energy Cannon . | . . . Ballistic Gun . | . . . Ballistic Cannon . | . . . Launcher 1 | . . 1 Special Weapon 1 | . . 1 Impact Weapon . | . . . Slashing Weapon . | . . . Piercing Weapon . | . . . Special Melee Weapon . | . . . Unidentified Prototypes . | . . . Corrupted Parts 1 | . . 1 System Corruption 1 | . . 1 Parts Lost 10 | . . 10 Power 1 | . . 1 Propulsion 2 | . . 2 Utility 2 | . . 2 Weapon 5 | . . 5 Highest Loss Streak 9 | . . 9 To Critical Strikes . | . . . Average Backups 6 | 3 7 6 Power 1 | . 1 1 Propulsion 3 | 1 3 3 Utility . | . . . Weapon 1 | 1 2 1 Tool/Special . | . . . Unused Backups 6 | . . 6 Power 2 | . . 2 Propulsion 2 | . . 2 Utility 1 | . . 1 Weapon 1 | . . 1 Tool/Special . | . . . Average Slot Usage (%) 84 | . 97 75 Engine 10 | . 14 8 Treads 27 | . 28 27 Device 8 | . 11 7 Storage 14 | . 14 14 Energy Gun 19 | . 28 13 Launcher 2 | . . 3 Peak Build Rating 9 | 6 7 9 Average Rating 6 | 5 6 6 On Entrance 4 | . 6 7 Avg Prop Armor Cover (%) 8 | 8 . . Naked Turns . | . . . Heaviest Build 16 | 14 15 16 Greatest Support 40 | 40 40 40 Greatest Overweight (x) 1 | 1 . . Average Overweight (x) . | . . . Largest Inventory Capacity 8 | 8 8 8 Average Capacity 7 | 7 8 8 Most Carried 8 | 6 8 8 Average Carried 6 | 3 7 7 Final Capacity 8 | 8 8 8 Final Carried 8 | 6 8 8 Class Distribution -------------------- 100% | Mutant Dominant Class ---------------- Mutant | -10/Materials Mutant | -10/Subcaves Resources | -11 -10 -10 ----------- Run | Yrd Mat Sub Matter Collected 430 | 280 10 140 Remotely . | . . . Salvage Created 477 | 120 231 126 Parts 34 | 8 19 7 Haulers Intercepted 1 | . 1 . Recyclers Shooed . | . . . Parts Field Recycled . | . . . Retrieved Matter . | . . . Parts Self-Destructed 3 | . . 3 Prevented 1 | . . 1 Parts Restored . | . . . Kills | -11 -10 -10 ------- Run | Yrd Mat Sub Combat Hostiles Destroyed 9 | . 4 5 Melee 1 | . . 1 Guns 6 | . 4 2 AOE 2 | . . 2 Classes Destroyed 9 | 2 5 2 Worker 1 | . 1 . Tunneler 2 | 2 . . Hauler 1 | . 1 . Recycler 1 | 1 . . Watcher 3 | . 3 . Swarmer 3 | . 3 . Grunt 1 | . 1 . Sentry 1 | . . 1 Subdweller 4 | . . 4 Best Kill Streak 4 | 1 4 2 Combat Bots Only 3 | . 3 2 Max Kills in Single Turn 2 | 1 2 1 Gunslinging 1 | . 1 . Exploded 1 | . . 1 Melee 1 | . . 1 Uniques/NPCs Destroyed . | . . . Combat | -11 -10 -10 -------- Run | Yrd Mat Sub Hostile Shots Fired 79 | . 9 70 Missed 18 | . 1 17 Hits 61 | . 8 53 Projectile 61 | . 8 53 Critical Strikes 2 | . . 2 Damage Taken 1267 | . 64 1203 Core 265 | . 19 246 Absorbed by Shields . | . . . Core Remaining (%) 100 | 100 . . Volleys Fired 55 | 9 21 25 Largest 2 | 2 2 2 Hottest 90 | 90 90 90 Shots Fired 93 | 18 38 37 Gun 83 | 18 38 27 Cannon . | . . . Launcher 10 | . . 10 Special . | . . . Kinetic . | . . . Thermal 40 | 9 17 14 Explosive 10 | . . 10 Electromagnetic 43 | 9 21 13 Robot Hit Streak 9 | 9 9 8 Robot Miss Streak 7 | 2 7 2 Penetration Max . | . . . Secondary Targets 1 | . 1 . Max Gunslinging Chain 1 | . 1 . Shots Hit Robots 59 | 12 18 29 Core Hits 28 | 4 11 13 Critical Kills . | . . . Critical Parts Destroyed . | . . . Critical Strikes 1 | 1 . . Burn 1 | 1 . . Melee Attacks . | . . . Impact . | . . . Slashing . | . . . Piercing . | . . . Sneak Attacks . | . . . Combat Hostiles . | . . . Follow-up Attacks . | . . . Damage Inflicted 1146 | 154 272 720 Guns 735 | 154 272 309 Cannons . | . . . Explosions 409 | . . 409 Melee . | . . . Ramming 2 | . . 2 Kinetic . | . . . Thermal 365 | 50 115 200 Explosive 409 | . . 409 Electromagnetic 370 | 104 157 109 Impact . | . . . Slashing . | . . . Piercing . | . . . Highest Corruption 1 | . . 1 Average Corruption 1 | . . 1 Corruption Purged . | . . . Corruption Blocked . | . . . Overload Shots . | . . . Overflow Damage 13 | . . 13 Projectiles . | . . . Explosions 13 | . . 13 Melee . | . . . Knockbacks . | . . . Impact . | . . . Kinetic . | . . . Secondary . | . . . Self-Inflicted Damage 157 | . . 157 Shots 5 | . . 5 Rammed 1 | . . 1 Targets Rammed 1 | . . 1 Kicked . | . . . Crushed . | . . . Highest Temperature 180 | 120 180 . Average Temperature 51 | 50 52 . Received Heat Transfer 153 | . . 153 Siege Activations . | . . . Martial Activations . | . . . Shielding Activations . | . . . Robots Disrupted . | . . . Combat Hostiles . | . . . Robots Corrupted . | . . . Combat Hostiles . | . . . Parts Fried . | . . . Impact Corruptions . | . . . Robots Melted . | . . . Combat Hostiles . | . . . Parts Melted . | . . . Heat Transferred 915 | 222 333 360 Parts Sabotaged . | . . . Parts Stolen . | . . . Parts Stripped . | . . . Power Chain Reactions . | . . . Alert | -11 -10 -10 ------- Run | Yrd Mat Sub Maximum Alert Level . | . . . Low Security (%) 100 | 100 100 . Level 1 . | . . . Level 2 . | . . . Level 3 . | . . . Level 4 . | . . . Level 5 . | . . . High Security . | . . . Max Security . | . . . Peak Influence 77 | 5 77 . Initial . | . . . Average 7 | 1 10 . Influence Increases 183 | 15 148 20 Destroy 0b10 Robot/C 100 | . 80 20 Destroy 0b10 Robot/NC 40 | 15 25 . Destroy Leader 28 | . 28 . Disable Machine 15 | . 15 . Influence Decreases 183 | 15 91 77 Entered New Map 28 | . . 28 Time Decay 155 | 15 91 49 Squads Dispatched 1 | . 1 . Investigation . | . . . Extermination . | . . . Reinforcement 1 | . 1 . Assault . | . . . Garrison . | . . . Intercept . | . . . Searches Triggered . | . . . Construction Impeded . | . . . Haulers Reinforced . | . . . Active Scanning Responses . | . . . Cargo Convoy Interrupts . | . . . Stealth | -11 -10 -10 --------- Run | Yrd Mat Sub Distress Signals . | . . . Communications Jammed . | . . . Distress Signals . | . . . Times Spotted 16 | . 9 7 Peak Tracking Total 3 | . 3 2 Tactical Retreats . | . . . Traps | -11 -10 -10 ------- Run | Yrd Mat Sub Traps Triggered . | . . . Indirectly . | . . . Trap Hack Attempts . | . . . Triggered . | . . . Disarmed . | . . . Reprogrammed . | . . . Reused . | . . . Traps Extracted . | . . . Installed . | . . . Triggered . | . . . Machines | -11 -10 -10 ---------- Run | Yrd Mat Sub Machines Disabled 1 | . 1 . Max in Single Turn 1 | . 1 . Machines Repaired . | . . . Machines Dismantled . | . . . Machines Sabotaged . | . . . Overloaded Fab Kills . | . . . Hacking | -11 -10 -10 --------- Run | Yrd Mat Sub Machines Accessed 3 | . 3 . Terminals 3 | . 3 . Fabricators . | . . . Repair Stations . | . . . Recycling Units . | . . . Scanalyzers . | . . . Garrison Access . | . . . Total Hacks 11 | . 11 . Successful 4 | . 4 . Failed 7 | . 7 . Catastrophic . | . . . Database Lockouts . | . . . Manual 11 | . 11 . Terminals 11 | . 11 . Fabricators . | . . . Repair Stations . | . . . Recycling Units . | . . . Scanalyzers . | . . . Garrison Access . | . . . Terminal Hacks . | . . . Fabricator Hacks . | . . . Repair Station Hacks . | . . . Recycling Unit Hacks . | . . . Scanalyzer . | . . . Garrison Access Hacks . | . . . Unauthorized Hacks 4 | . 4 . Terminals 4 | . 4 . Botnet 3 | . 3 . Operators 1 | . 1 . Fabricators . | . . . Repair Stations . | . . . Recycling Units . | . . . Scanalyzers . | . . . Garrison Access . | . . . Data Cores Recovered . | . . . Used . | . . . Hacking Detections 3 | . 3 . Full Trace Events . | . . . Feedback Events . | . . . Feedback Blocked . | . . . Robot Schematics Acquired . | . . . Robots Built . | . . . Authchips . | . . . Time . | . . . Total Robot Build Rating . | . . . Part Schematics Acquired . | . . . Parts Built . | . . . Authchips . | . . . Time . | . . . Total Part Build Rating . | . . . Part Studies Acquired . | . . . Parts Repaired . | . . . Time . | . . . Parts Recycled . | . . . Recycled Matter . | . . . Retrieved Matter . | . . . Retrieved Components . | . . . Parts Scanalyzed . | . . . Part Schematics Acquired . | . . . Parts Damaged . | . . . Bothacking | -11 -10 -10 ------------ Run | Yrd Mat Sub Used RIF Installer . | . . . Robots Hacked . | . . . Non-combat . | . . . Combat . | . . . Robot Hacks Applied . | . . . Relay Couplers Released . | . . . Fabnet Peak Effective % . | . . . Robots Rewired . | . . . Allies Hacked . | . . . Hacks Repelled . | . . . Allies | -11 -10 -10 -------- Run | Yrd Mat Sub Total Allies . | . . . Largest Group . | . . . Highest-Rated Group . | . . . Highest-Rated Ally . | . . . Total Orders . | . . . Ally Attacks . | . . . Total Damage . | . . . Kills . | . . . Allies Corrupted . | . . . Allies Melted . | . . . Intel | -11 -10 -10 ------- Run | Yrd Mat Sub Active Infowar (turns) 630 | . 319 311 Optics 34 | . . 34 Seismic 596 | . 319 277 Robot Analysis Total . | . . . Derelict Logs Recovered 1 | . . 1 Drone Launches . | . . . Drone Recoveries . | . . . Exploration | -11 -10 -10 ------------- Run | Yrd Mat Sub Turns Passed 1148 | 147 383 618 Spaces Moved 601 | 68 200 333 Core 3 | 3 . . Treads 588 | 55 200 333 Legs 10 | 10 . . Wheels . | . . . Hover . | . . . Flight . | . . . Fastest Speed 50 | 50 160 160 Average Speed 159 | 154 160 160 Slowest Speed 190 | 190 160 160 Overloaded Moves . | . . . Propulsion Burnouts . | . . . Robots Hopped . | . . . Potential Cave-ins 1 | . . 1 Cave-ins Triggered . | . . . Exploration Rate (%) 21 | 5 36 23 Regions Visited 2 Branch Regions 1 Pre-discovered Areas . | . . . Known Exits Taken . | . . . Unknown Exits Taken 2 | 1 1 . Scrap Searched 1 | . . 1 Spaces Dug . | . . . Terrain Destroyed 48 | . . 48 Melee . | . . . Projectile . | . . . AOE 48 | . . 48 Terrain Rammed . | . . . Walls Destroyed . | . . . Machines Disabled . | . . . Actions | -11 -10 -10 --------- Run | Yrd Mat Sub Total 694 | 89 225 380 Wait 6 | . 1 5 Move 599 | 67 199 333 Hop . | . . . Pick Up 13 | 4 3 6 Fast Attach 9 | 7 . 2 Attach 6 | . 1 5 Detach 1 | 1 . . Swap 3 | 1 . 2 Drop 1 | . . 1 Fire 55 | 9 21 25 Melee . | . . . Ram . | . . . Kick . | . . . Crush 1 | . . 1 Escape Stasis . | . . . Rewire . | . . . Trap . | . . . Miscellaneous . | . . . Route ------- -11/Scrapyard -10/Materials (discovered 3 exits: [*Mat] / [*Min] / [*Sub]) -10/Subcaves History --------- Turn | Location | Event 24 | -11/Scrapyard | Discovered new exit (range 15) 148 | -11/Scrapyard | Entered Materials 204 | -10/Materials | Discovered new exit (range 16) 309 | -10/Materials | Build established: Mutant 498 | -10/Materials | Discovered new exit (range 15) 518 | -10/Materials | Discovered new exit (range 7) 531 | -10/Materials | Entered Subcaves 532 | -10/Subcaves | Approached by a straggling Scientist 860 | -10/Subcaves | Core integrity fell below 50% 890 | -10/Subcaves | Core integrity fell below 20% 919 | -10/Subcaves | Lost 9 parts (1p2n2u4w) 1149 | -10/Subcaves | Destroyed by MB-LMF(R) with Subdweller Machine Gun Last Messages --------------- 00888_ Ion Engine destroyed. 00889_ Slammed into S6-84X(R). 00889_ S6-84X(R) destroyed. 00890_ Acquired 1 matter. 00892_ Acquired Sub. Laser. 00893_ HB-DEG(R) affixes Scrap Shield Fragment to Scrap Shield. 00896_ HB-DEG(R) destroyed. 00899_ Acquired Sub. Power Source. 00900_ Acquired 19 matter. 00903_ Acquired Scrap Shield Fragment. 00949_ Subatomizers dissect the Wheel. 00959_ Acquired Corrupted Lgt. Treads. 00960_ Acquired 57 matter. 00969_ Acquired Machine Analyzer. 00972_ Acquired Lgt. Ion Engine. 00973_ Acquired 5 matter. 01035_ Acquired 2 matter. 01043_ Acquired derelict log, extracted data. Data stored: Storage entrances (x1). Map ----- +----------------------------------------------------+ | # ## ##???????????????????????# ##??? | | ########????????????????????????# ###???? | | ????????????????????????????????## ###?????? | | ?????????????????????????????????# ##??????? | | ?????????????????????????????????## ##?????? | | #????????????????????????????????## ##### | | #????????????????????????????????# | | #????????????????????????????????### | | #??????????????????????????????????## | | #???????????????????????????????????# ######### | | #???????????????????????????????????# ####????? | | ????????????????????????????????????## ##???? | | ?????????????????????????????????????# #???? | | ?????????????????????????????????????## ##??? | | ??????????????????????????????????????###### #### | | ????????????????????????????????????????##### | | ????????????????????????????????????????# ## | | ????????????????????????????????????????# | | ?????????????????????????????????????#### | | ????????????????????????????????????## | | ????????????????????????????????????# #### | | ????????????????????????????????????# ##???# | | ????????????????????????????????????# #????? | | ??????????????????????##########????# #????? | | ????????????????## ## ####?# ##????? | | ????????????????# RR @ ### ####?????? | | ????????????????# ### ##???????? | | ????????????????# ??#### #???????? | | ????????????????# ??????## # ### ##???????? | | ???????????????# ???????#######? #???????? | | ???????????????# ???????????????# ##???????? | | ???????????????# ??????????????? # ????????? | | ?????????????? ????????????????## ???????? | | ????????????? ### ?????????????????### ??????? | | ???????????? #?? ?????????????????????# ?????? | | ???????????? ????#??????????????????????# #????? | | ???????????? ????????????????????????????? ?#????? | | ??????????????????????????????????????????? ?????? | | ??????????????????????????????????????????? ?????? | | ?????????????????????????????????????????????????? | | ?????????????????????????????????????????????????? | | ?????????????????????????????????????????????????? | | ?????????????????????????????????????????????????? | | ?????????????????????????????????????????????????? | | ?????????????????????????????????????????????????? | | ?????????????????????????????????????????????????? | | ?????????????????????????????????????????????????? | | ?????????????????????????????????????????????????? | | ?????????????????????????????????????????????????? | | ?????????????????????????????????????????????????? | +----------------------------------------------------+ Best States ------------- Heat Dissipation 25 Energy Generation 10 Energy Capacity 250 Matter Stores 300 Matter Capacity 300 Sight Range 21 Terrain Scan Density 10 Evasion (%) 40 Recoil Reduction 2 Item Schematics ----------------- None Robot Schematics ------------------ None Fabricated ------------ Nothing Repaired ---------- Nothing Studied --------- None Alien Tech Used ----------------- None Achievements -------------- None Challenges ------------ None Game ------ Seed MinesnifferAmuletActivator Manual? 0 Play Time 00:14:46 Cumulative 118.3 hours Start 2026.02.06 @ 16:38:18 End 2026.02.12 @ 10:54:11 Sessions 3 Manual Loads 0 Difficulty Rogue Special Mode None Game No. 128 Rogue 128 Adventurer 0 Explorer 0 Win Type - Total 4 Types 4/0/0/0/0/0/0/0/0/0 Lore% 66 Gallery% 54 Achievement% 40 Wizard Run 0 Options --------- Layout 1 ASCII 0 Keyboard 1 Movement Vi Keybinds 0 Fullscreen 2 Font 24/Terminus Map View 50x35 Zoom Use 0% Tactical HUD 1 Map Filters NONE Filters NONE Steam 1 RUN: 36216977-0fec-42c7-808d-e9fe2bead785